[Event "14th Poti Open-A 2019"]
[Site "Poti"]
[Date "2019.07.18"]
[Round "7.5"]
[White "Sanikidze, Tornike"]
[Black "Tutisani, Noe"]
[Result "1-0"]
[ECO "E73"]
[WhiteElo "2509"]
[BlackElo "2460"]
[Annotator "ChessBase"]
[PlyCount "57"]
[EventDate "2019.07.13"]
[EventType "swiss"]
[EventCountry "GEO"]
[SourceTitle "playchess.com"]
[Source "ChessBase"]
[SourceQuality "1"]
[TimeControl "40/5400+30:1800+30"]

1. d4 {[%emt 0:08:58]} Nf6 {[%emt 0:00:06]} 2. c4 {[%emt 0:00:35]} g6 {[%emt 0:00:17]} 3. Nc3 {[%emt 0:00:33]} Bg7 {[%emt 0:03:39]} 4. e4 {[%emt 0:00:25]} d6 {[%emt 0:04:35]} 5. Be2 {[%emt 0:06:00]} O-O {[%emt 0:01:26]} 6. Bg5 {[%emt 0:00:14]} c5 {[%emt 0:02:35]} 7. d5 {[%emt 0:00:27]} e6 {[%emt 0:01:54]} 8. Qd2 {[%emt 0:00:58]} exd5 {[%emt 0:01:19]} 9. cxd5 {[%emt 0:00:08]} Nbd7 {[%emt 0:00:07]} 10. f3 {[%emt 0:04:15]} Ne5 {[%emt 0:04:40]} 11. f4 {[%emt 0:11:32]} Ned7 {[%emt 0:00:50]} 12. Nf3 {[%emt 0:00:07]} Re8 {[%emt 0:01:55]} 13. Qc2 {[%emt 0:00:29]} h6 {[%emt 0:02:35]} 14. Bh4 {[%emt 0:00:37]} a6 {[%emt 0:05:13]} 15. a4 {[%emt 0:00:32]} Qa5 {[%emt 0:02:38]} 16. O-O {[%emt 0:18:26]} Ng4 {[%emt 0:03:18]} 17. Rfe1 {[%emt 0:06:24]} c4 {[%emt 0:05:29]} 18. h3 {[%emt 0:12:03]} Qb6+ {[%emt 0:00:31]} 19. Kh1 {[%emt 0:00:35]} Nf2+ {[%emt 0:00:17]} 20. Kh2 {[%emt 0:00:46]} Nd3 {[%emt 0:00:25]} 21. Bxd3 {[%emt 0:03:31]} cxd3 {[%emt 0:00:08]} 22. Qd2 {[%emt 0:00:38]} Qb4 {[%emt 0:05:30]} 23. Bf2 {[%emt 0:01:39]} Qc4 {[%emt 0:13:13]} 24. Rac1 {[%emt 0:05:59]} Nf6 {[%emt 0:03:38]} 25. Bd4 {[%emt 0:12:09]} Bd7 {[%emt 0:08:41]} 26. Nb5 {[%emt 0:01:31]} Qxa4 {[%emt 0:06:53]} 27. Nxd6 {[%emt 0:00:09]} Nxe4 {[%emt 0:00:04]} 28. Nxe4 {[%emt 0:01:40]} Bxd4 {[%emt 0:07:32]} 29. b3 {[%emt 0:00:08]} 1-0

[Event "14th Poti Open-A 2019"]
[Site "Poti"]
[Date "2019.07.18"]
[Round "7.6"]
[White "Hayrapetyan, Hovik"]
[Black "Gharibyan, Mamikon"]
[Result "1/2-1/2"]
[ECO "A46"]
[WhiteElo "2465"]
[BlackElo "2350"]
[Annotator "ChessBase"]
[PlyCount "155"]
[EventDate "2019.07.13"]
[EventType "swiss"]
[EventCountry "GEO"]
[SourceTitle "playchess.com"]
[Source "ChessBase"]
[SourceQuality "1"]
[TimeControl "40/5400+30:1800+30"]

1. d4 {[%emt 0:03:05]} Nf6 {[%emt 0:00:00]} 2. Nf3 {[%emt 0:02:24]} e6 {[%emt 0:04:50]} 3. a3 {[%emt 0:01:52]} b5 {[%emt 0:03:12]} 4. Nc3 {[%emt 0:04:54]} b4 {[%emt 0:17:45]} 5. axb4 {[%emt 0:00:54]} Bxb4 {[%emt 0:00:11]} 6. Bd2 {[%emt 0:00:20]} Bb7 {[%emt 0:02:35]} 7. e3 {[%emt 0:01:25]} O-O {[%emt 0:01:01]} 8. Bd3 {[%emt 0:02:19]} c5 {[%emt 0:09:56]} 9. O-O {[%emt 0:07:15]} d5 {[%emt 0:01:52]} 10. Na4 {[%emt 0:07:36]} Bxd2 {[%emt 0:00:55]} 11. Nxc5 {[%emt 0:24:22]} Bb4 {[%emt 0:00:30]} 12. Nxb7 {[%emt 0:00:09]} Qb6 {[%emt 0:00:25]} 13. c3 {[%emt 0:00:05]} Be7 {[%emt 0:05:21]} 14. Na5 {[%emt 0:01:31]} Qxb2 {[%emt 0:00:19]} 15. Qc1 {[%emt 0:04:56]} Qxc1 {[%emt 0:06:24]} 16. Rfxc1 {[%emt 0:00:06]} Rc8 {[%emt 0:10:04]} 17. c4 {[%emt 0:05:21]} dxc4 {[%emt 0:02:18]} 18. Bxc4 {[%emt 0:02:08]} Nbd7 {[%emt 0:00:45]} 19. Ba6 {[%emt 0:05:30]} Rxc1+ {[%emt 0:05:25]} 20. Rxc1 {[%emt 0:00:07]} Bd8 {[%emt 0:09:01]} 21. Nc6 {[%emt 0:00:06]} Bb6 {[%emt 0:00:11]} 22. Nd2 {[%emt 0:00:17]} Re8 {[%emt 0:05:30]} 23. Nc4 {[%emt 0:03:21]} Nb8 {[%emt 0:01:28]} 24. Nxb8 {[%emt 0:06:13]} Rxb8 {[%emt 0:00:03]} 25. Ne5 {[%emt 0:00:06]} Nd5 {[%emt 0:03:24]} 26. Nc6 {[%emt 0:00:19]} Re8 {[%emt 0:01:18]} 27. Kf1 {[%emt 0:00:30]} Kf8 {[%emt 0:00:39]} 28. Ke2 {[%emt 0:00:20]} Nf6 {[%emt 0:04:44]} 29. f4 {[%emt 0:05:26]} Nd7 {[%emt 0:00:54]} 30. Bb7 {[%emt 0:03:55]} f6 {[%emt 0:01:42]} 31. Kd3 {[%emt 0:01:45]} Nb8 {[%emt 0:00:20]} 32. Nxb8 {[%emt 0:01:34]} Rxb8 {[%emt 0:00:04]} 33. Bc8 {[%emt 0:00:03]} e5 {[%emt 0:01:01]} 34. fxe5 {[%emt 0:00:05]} fxe5 {[%emt 0:00:03]} 35. d5 {[%emt 0:01:03]} Bd8 {[%emt 0:01:04]} 36. Ke4 {[%emt 0:00:10]} Rb3 {[%emt 0:01:14]} 37. d6 {[%emt 0:03:16]} Kf7 {[%emt 0:01:22]} 38. Rf1+ {[%emt 0:01:41]} Bf6 {[%emt 0:00:12]} 39. Ba6 {[%emt 0:01:30]} Rb6 {[%emt 0:00:34]} 40. Bc4+ {[%emt 0:00:00]} Ke8 {[%emt 0:00:00]} 41. Bg8 {[%emt 0:02:15]} Rxd6 {[%emt 0:00:53]} 42. Bxh7 {[%emt 0:04:03]} Rd2 {[%emt 0:02:18]} 43. Kf3 {[%emt 0:00:04]} a5 {[%emt 0:01:07]} 44. Rb1 {[%emt 0:04:05]} a4 {[%emt 0:03:41]} 45. Bg6+ {[%emt 0:00:11]} Kd7 {[%emt 0:01:20]} 46. Rb7+ {[%emt 0:00:26]} Kd6 {[%emt 0:00:33]} 47. Ra7 {[%emt 0:00:14]} Ra2 {[%emt 0:00:27]} 48. e4 {[%emt 0:02:46]} Kc5 {[%emt 0:00:43]} 49. Bf7 {[%emt 0:00:39]} Ra1 {[%emt 0:00:48]} 50. Kg4 {[%emt 0:00:38]} Kd4 {[%emt 0:00:45]} 51. Bd5 {[%emt 0:00:31]} Ke3 {[%emt 0:02:12]} 52. g3 {[%emt 0:02:34]} Kf2 {[%emt 0:06:53]} 53. Rc7 {[%emt 0:00:16]} Re1 {[%emt 0:01:23]} 54. Ra7 {[%emt 0:02:56]} Rh1 {[%emt 0:02:04]} 55. Rxa4 {[%emt 0:00:55]} Rxh2 {[%emt 0:00:03]} 56. Ra2+ {[%emt 0:01:15]} Kg1 {[%emt 0:00:02]} 57. Ra3 {[%emt 0:00:16]} Kf2 {[%emt 0:00:32]} 58. Rf3+ {[%emt 0:00:54]} Kg2 {[%emt 0:00:35]} 59. Bc4 {[%emt 0:00:20]} Rh6 {[%emt 0:00:45]} 60. Bf7 {[%emt 0:02:44]} Rh2 {[%emt 0:00:54]} 61. Rb3 {[%emt 0:03:30]} Kf2 {[%emt 0:00:21]} 62. Bc4 {[%emt 0:02:44]} Rh6 {[%emt 0:00:56]} 63. Rb2+ {[%emt 0:00:29]} Ke3 {[%emt 0:00:35]} 64. Re2+ {[%emt 0:00:06]} Kd4 {[%emt 0:00:01]} 65. Bd5 {[%emt 0:00:02]} Kd3 {[%emt 0:00:57]} 66. Ra2 {[%emt 0:04:49]} Ke3 {[%emt 0:00:10]} 67. Ra3+ {[%emt 0:01:29]} Kf2 {[%emt 0:00:09]} 68. Bf7 {[%emt 0:00:50]} Rh2 {[%emt 0:00:23]} 69. Be8 {[%emt 0:00:10]} Rh1 {[%emt 0:00:39]} 70. Bg6 {[%emt 0:01:03]} Rh6 {[%emt 0:02:00]} 71. Ra2+ {[%emt 0:00:26]} Ke3 {[%emt 0:00:16]} 72. Kf5 {[%emt 0:00:34]} Rh3 {[%emt 0:02:22]} 73. g4 {[%emt 0:00:26]} Rf3+ {[%emt 0:00:39]} 74. Ke6 {[%emt 0:00:07]} Rf2 {[%emt 0:01:07]} 75. Ra1 {[%emt 0:04:03]} Kf4 {[%emt 0:00:30]} 76. Bf5 {[%emt 0:00:02]} Kg5 {[%emt 0:01:42]} 77. Ra8 {[%emt 0:00:20]} Rh2 {[%emt 0:00:28]} 78. Rb8 {[%emt 0:00:30]} 1/2-1/2

[Event "14th Poti Open-A 2019"]
[Site "Poti"]
[Date "2019.07.18"]
[Round "7.7"]
[White "Arabidze, Meri"]
[Black "Shahinyan, David"]
[Result "0-1"]
[ECO "A65"]
[WhiteElo "2402"]
[BlackElo "2445"]
[Annotator "RC"]
[PlyCount "102"]
[EventDate "2019.07.13"]
[EventType "swiss"]
[EventCountry "GEO"]
[SourceTitle "playchess.com"]
[Source "ChessBase"]
[SourceQuality "1"]
[TimeControl "40/5400+30:1800+30"]

1. d4 {[%emt 0:03:00]} Nf6 {[%emt 0:00:18]} 2. c4 {[%emt 0:00:11]} c5 {[%emt 0:00:35]} 3. d5 {[%emt 0:00:19]} e6 {[%emt 0:00:35]} 4. Nc3 {[%emt 0:00:15]} exd5 {[%emt 0:00:10]} 5. cxd5 {[%emt 0:00:02]} d6 {[%emt 0:00:07]} 6. e4 {[%emt 0:00:22]} g6 {[%emt 0:00:05]} 7. Nge2 {[%emt 0:01:10]} Bg7 {[%emt 0:01:10]} 8. Ng3 {[%emt 0:00:08]} a6 {[%emt 0:00:18]} 9. a4 {[%emt 0:00:06]} h5 {[%emt 0:00:01]} 10. Be2 {[%emt 0:00:35]} Qe7 {[%emt 0:00:00]} 11. f3 {[%emt 0:05:12]} Nbd7 {[%emt 0:01:55]} 12. O-O {[%emt 0:01:50]} h4 {[%emt 0:00:06]} 13. Nh1 {[%emt 0:00:12]} Nh5 {[%emt 0:00:01]} 14. Be3 {[%emt 0:21:08]} f5 {[%emt 0:01:48]} 15. f4 {[%emt 0:01:47]} h3 {[%emt 0:18:05]} 16. Bxh5 {[%emt 0:06:56]} Rxh5 {[%emt 0:02:25]} 17. g4 {[%emt 0:10:21]} Rh4 {[%emt 0:03:24]} 18. gxf5 {[%emt 0:02:18]} Bxc3 {[%emt 0:01:46]} 19. bxc3 {[%emt 0:00:41]} Qxe4 {[%emt 0:00:05]} 20. Qf3 {[%emt 0:09:57]} gxf5 {[%emt 0:10:07]} 21. Rae1 {[%emt 0:08:16]} Qxf3 {[%emt 0:07:26]} 22. Rxf3 {[%emt 0:00:15]} Kf8 {[%emt 0:00:06]} 23. Nf2 {[%emt 0:03:58]} Nb6 {[%emt 0:01:40]} 24. Bd2 {[%emt 0:03:49]} Bd7 {[%emt 0:01:55]} 25. a5 {[%emt 0:07:01]} Nc4 {[%emt 0:03:00]} 26. Bc1 {[%emt 0:01:13]} Re8 {[%emt 0:00:10]} 27. Rxe8+ Bxe8 {[%emt 0:00:04]} 28. Nxh3 {[%emt 0:01:36]} Bh5 {[%emt 0:00:45]} 29. Rd3 {[%emt 0:01:45]} Be2 {[%emt 0:00:03]} 30. Rg3 {[%emt 0:00:08]} Rg4 {[%emt 0:00:01]} 31. Rxg4 Bxg4 {[%emt 0:00:05]} 32. Ng5 {[%emt 0:01:56]} Nxa5 {[%emt 0:00:27]} 33. Kf2 {[%emt 0:01:01]} Nc4 {[%emt 0:00:07]} 34. h3 {[%emt 0:00:50]} Bh5 {[%emt 0:00:35]} 35. Ne6+ {[%emt 0:01:34]} Ke7 {[%emt 0:00:05]} 36. Kg3 {[%emt 0:01:51]} Kf6 {[%emt 0:00:37]} 37. Nc7 {[%emt 0:02:03]} Bf7 {[%emt 0:01:26]} 38. Kh4 {[%emt 0:00:54]} a5 {[%emt 0:03:46]} 39. Nb5 {[%emt 0:01:21]} Bxd5 {[%emt 0:04:42]} 40. Kh5 {[%emt 0:00:00]} Bf7+ {[%emt 0:00:00]} 41. Kh6 {[%emt 0:00:46]} d5 {[%emt 0:04:14]} 42. h4 {[%emt 0:00:33]} Be8 {[%emt 0:02:31]} 43. Nc7 {[%emt 0:07:29]} Bc6 {[%emt 0:00:50]} 44. h5 {[%emt 0:00:23]} d4 {[%emt 0:00:04]} 45. cxd4 {[%emt 0:01:58]} cxd4 {[%emt 0:00:01]} 46. Kh7 {[%emt 0:04:58]} Kf7 {[%emt 0:00:10]} 47. h6 {[%emt 0:07:33]} d3 {[%emt 0:00:16]} 48. Kh8 {[%emt 0:00:36]} a4 {[%emt 0:00:05]} 49. h7 {[%emt 0:01:43]} a3 {[%emt 0:00:56]} 50. Ne6 {[%emt 0:04:03]} a2 {[%emt 0:00:47]} 51. Nd8+ {[%emt 0:03:26]} Kg6 {[%emt 0:00:10]} 0-1

[Event "14th Poti Open-A 2019"]
[Site "Poti"]
[Date "2019.07.18"]
[Round "7.10"]
[White "Nikoladze, Sopio"]
[Black "Gvetadze, Sofio"]
[Result "1/2-1/2"]
[ECO "A48"]
[WhiteElo "2124"]
[BlackElo "2316"]
[Annotator "NA"]
[PlyCount "100"]
[EventDate "2019.07.13"]
[EventType "swiss"]
[EventCountry "GEO"]
[SourceTitle "playchess.com"]
[Source "ChessBase"]
[SourceQuality "1"]
[TimeControl "40/5400+30:1800+30"]

1. d4 {[%emt 0:00:00]} Nf6 {[%emt 0:00:00]} 2. Nf3 {[%emt 0:00:00]} g6 {[%emt 0:00:00]} 3. Nc3 {[%emt 0:00:00]} c5 {[%emt 0:00:09]} 4. e4 {[%emt 0:00:23]} cxd4 {[%emt 0:00:09]} 5. Nxd4 {[%emt 0:00:02]} Nc6 {[%emt 0:00:43]} 6. Nxc6 {[%emt 0:01:36]} bxc6 {[%emt 0:00:05]} 7. e5 {[%emt 0:00:39]} Ng8 {[%emt 0:00:04]} 8. Bc4 {[%emt 0:02:44]} Qa5 {[%emt 0:03:09]} 9. Qe2 {[%emt 0:03:09] B34: Sicilian: Accelerated Dragon with 5 Nc3: sidelines} (9. Bf4 Bg7 10. O-O Bxe5 11. Bxe5 Qxe5 12. Re1 Qf5 13. Qd4 Qf6 14. Qc5 Kf8 15. Re3 d5 16. Rf3 Bf5 17. Ba6 Rb8 18. g4 {0-1 (38) De Jong,M (2345)-Bu,X (2707) Vlissingen 2014}) 9... Bg7 {[%emt 0:00:36]} 10. f4 {[%emt 0:00:17]} Nh6 {[%emt 0:02:41]} 11. O-O {[%emt 0:01:44]} O-O {[%emt 0:00:30]} 12. Bd2 {[%emt 0:05:23]} Nf5 $146 {[%emt 0:06:21]} ({Predecessor:} 12... Qc7 13. Kh1 d6 14. e6 f5 15. Ba6 Ng4 16. Bxc8 Qxc8 {0-1 (31) Mertens,L (1655)-Janasik,G (2038) Berlin 2018}) 13. g4 {[%emt 0:06:36]} Qb6+ {[%emt 0:19:42]} 14. Kg2 {[%emt 0:01:56]} Nd4 {[%emt 0:02:35]} 15. Qd3 {[%emt 0:02:57]} d5 {[%emt 0:04:35]} 16. exd6 {[%emt 0:00:49]} exd6 {[%emt 0:15:21]} 17. Na4 {[%emt 0:11:36]} Qd8 {[%emt 0:05:42]} 18. c3 {[%emt 0:02:41]} d5 {[%emt 0:00:51]} 19. Ba6 {[%emt 0:00:31]} Qa5 {[%emt 0:16:51]} 20. Bxc8 {[%emt 0:00:53]} Raxc8 {[%emt 0:00:55]} 21. b3 {[%emt 0:03:49]} Qb5 {[%emt 0:00:22]} 22. Qg3 {[%emt 0:01:30]} Qe2+ {[%emt 0:02:22]} 23. Rf2 {[%emt 0:00:52]} Qe4+ {[%emt 0:01:32]} 24. Kh3 {[%emt 0:02:53]} Nc2 {[%emt 0:01:01]} 25. Rc1 {[%emt 0:04:10]} f5 {[%emt 0:02:50]} 26. Nc5 {[%emt 0:04:27]} Qe7 {[%emt 0:00:29]} 27. b4 {[%emt 0:00:12]} fxg4+ 28. Qxg4 {[%emt 0:01:12]} Na3 {[%emt 0:04:46]} 29. Re1 {[%emt 0:01:12]} Qf7 {[%emt 0:00:45]} 30. Ne6 {[%emt 0:05:07]} Rfe8 {[%emt 0:00:22]} 31. f5 {[%emt 0:01:45]} Nc4 {[%emt 0:02:00]} 32. Nxg7 {[%emt 0:09:42]} Rxe1 {[%emt 0:02:47]} 33. Bxe1 {[%emt 0:00:32]} Qxg7 {[%emt 0:00:13]} 34. fxg6 {[%emt 0:04:31]} Qh6+ {[%emt 0:00:12]} 35. Kg3 {[%emt 0:01:52]} Qxg6 {[%emt 0:00:23]} 36. Re2 {[%emt 0:07:46]} Nd6 {[%emt 0:03:25]} 37. Qxg6+ {[%emt 0:03:07]} hxg6 {[%emt 0:00:02]} 38. Kf4 {[%emt 0:01:20]} Kf7 {[%emt 0:02:30]} 39. Bf2 {[%emt 0:00:50]} a6 {[%emt 0:01:02]} 40. Bc5 {[%emt 0:00:00]} Nf5 {[%emt 0:00:00]} 41. Bd4 {[%emt 0:04:51]} Ra8 {[%emt 0:11:12]} 42. Kg5 {[%emt 0:04:42]} a5 {[%emt 0:07:20]} 43. Be5 {[%emt 0:06:30]} axb4 {[%emt 0:12:34]} 44. cxb4 {[%emt 0:00:13]} d4 {[%emt 0:00:13]} 45. Rd2 {[%emt 0:05:38]} Ra4 {[%emt 0:00:16]} 46. Bxd4 {[%emt 0:01:37]} Nxd4 $11 {[%emt 0:00:18]} 47. Rxd4 {[%emt 0:00:13]} Rxa2 {[%emt 0:00:03]} 48. h4 {[%emt 0:01:32]} Rg2+ {[%emt 0:00:52]} 49. Kh6 {[%emt 0:02:22]} Rg1 {[%emt 0:01:43]} 50. Rc4 {[%emt 0:01:20]} Ke7 {[%emt 0:00:14]} 1/2-1/2

[Event "14th Poti Open-A 2019"]
[Site "Poti"]
[Date "2019.07.18"]
[Round "7.11"]
[White "Chaqryan, Erik"]
[Black "Botoyan, Smbat"]
[Result "1/2-1/2"]
[ECO "E70"]
[WhiteElo "2027"]
[BlackElo "2240"]
[Annotator "NA"]
[PlyCount "119"]
[EventDate "2019.07.13"]
[EventType "swiss"]
[EventCountry "GEO"]
[SourceTitle "playchess.com"]
[Source "ChessBase"]
[SourceQuality "1"]
[TimeControl "40/5400+30:1800+30"]

1. d4 {[%emt 0:00:00]} g6 {[%emt 0:22:37]} 2. c4 {[%emt 0:00:00]} Bg7 {[%emt 0:00:05]} 3. Nc3 {[%emt 0:00:12]} Nf6 {[%emt 0:00:33]} 4. e4 {[%emt 0:00:09]} O-O {[%emt 0:00:17]} 5. Nge2 {[%emt 0:00:30]} c6 {[%emt 0:06:45]} 6. Ng3 {[%emt 0:00:40] E70: King's Indian: Miscellaneous lines with 4 e4, including 5 Nge2 and 5 Bd3 0-0 6 Nge2} d5 {[%emt 0:00:31]} 7. e5 {[%emt 0:02:46]} Ng4 {[%emt 0:03:00]} 8. Be2 {[%emt 0:05:02]} Nh6 {[%emt 0:03:04]} 9. cxd5 {[%emt 0:01:26]} cxd5 {[%emt 0:00:03]} 10. Be3 $146 {[%emt 0:04:00]} ({Predecessor:} 10. O-O Nc6 11. Be3 Nf5 12. Nxf5 Bxf5 13. Qb3 {0-1 (66) Martorell Aguado,J (2242)-Munoz Pantoja,M (2486) Barcelona 2017}) 10... f6 {[%emt 0:05:55]} 11. exf6 {[%emt 0:13:05]} Rxf6 {[%emt 0:04:22]} 12. Bf3 {[%emt 0:08:19]} Rd6 {[%emt 0:05:11]} 13. O-O {[%emt 0:08:59]} e6 {[%emt 0:01:42]} 14. Re1 {[%emt 0:04:32]} Nf7 {[%emt 0:02:18]} 15. Bf4 {[%emt 0:02:56]} Rb6 {[%emt 0:01:41]} 16. Na4 {[%emt 0:09:00]} Rb4 {[%emt 0:01:54]} 17. Be3 {[%emt 0:01:48]} Nc6 {[%emt 0:10:08]} 18. a3 {[%emt 0:07:53]} Rxd4 {[%emt 0:01:19]} 19. Bxd4 {[%emt 0:00:05]} Nxd4 {[%emt 0:00:33]} 20. Bg4 {[%emt 0:05:53]} Qh4 {[%emt 0:01:29]} 21. Nc5 {[%emt 0:07:25]} Ne5 {[%emt 0:04:25]} 22. Bxe6+ {[%emt 0:02:48]} Nxe6 {[%emt 0:03:36]} 23. Qxd5 {[%emt 0:00:24]} Qd4 {[%emt 0:00:46]} 24. Qxd4 {[%emt 0:09:41]} Nxd4 {[%emt 0:00:03]} 25. Rad1 {[%emt 0:00:42]} Ndc6 {[%emt 0:02:52]} 26. b3 {[%emt 0:01:45]} b6 {[%emt 0:01:08]} 27. Nd3 {[%emt 0:00:22]} Ba6 {[%emt 0:03:32]} 28. Nxe5 {[%emt 0:00:57]} Nxe5 {[%emt 0:00:03]} 29. Rd5 {[%emt 0:00:24]} Re8 {[%emt 0:00:52]} 30. Red1 {[%emt 0:00:33]} Nc6 {[%emt 0:01:59]} 31. f3 {[%emt 0:00:55]} Re3 {[%emt 0:02:53]} 32. Rd6 {[%emt 0:01:36]} Ne5 {[%emt 0:02:53]} 33. Rd8+ {[%emt 0:00:14]} Kf7 {[%emt 0:00:06]} 34. Ra8 {[%emt 0:00:54]} Nc6 {[%emt 0:00:39]} 35. Ne4 {[%emt 0:00:38]} Rd3 {[%emt 0:04:18]} 36. Ng5+ {[%emt 0:00:24]} Kf6 {[%emt 0:00:27]} 37. Nxh7+ {[%emt 0:00:30]} Kf5 {[%emt 0:00:05]} 38. Rxd3 {[%emt 0:00:49]} Bxd3 {[%emt 0:00:02]} 39. Rg8 {[%emt 0:00:33]} (39. Kf2 $11) 39... Bd4+ {[%emt 0:02:18]} 40. Kh1 {[%emt 0:00:00]} Bb2 {[%emt 0:00:00]} 41. Rf8+ {[%emt 0:11:44]} Ke5 {[%emt 0:01:32]} 42. Re8+ {[%emt 0:00:46]} Kf4 {[%emt 0:00:53]} 43. a4 $11 {[%emt 0:05:27]} Bc2 {[%emt 0:00:19]} 44. Nf8 {[%emt 0:05:01]} Ne5 {[%emt 0:06:07]} 45. Ra8 {[%emt 0:04:09]} Nc6 {[%emt 0:04:46]} 46. Rc8 {[%emt 0:01:01]} Nd4 {[%emt 0:01:09]} 47. Ne6+ {[%emt 0:00:12]} Nxe6 {[%emt 0:00:46]} 48. Rxc2 {[%emt 0:00:02]} Bd4 {[%emt 0:01:04]} 49. b4 {[%emt 0:00:45]} a5 {[%emt 0:00:43]} 50. bxa5 {[%emt 0:00:44]} bxa5 {[%emt 0:00:02]} 51. Rc4 {[%emt 0:03:01]} g5 {[%emt 0:03:01]} 52. Rc8 {[%emt 0:03:04]} Nc5 {[%emt 0:01:03]} 53. Rf8+ {[%emt 0:00:39]} Ke5 {[%emt 0:03:33]} 54. Rg8 {[%emt 0:00:53]} Kf6 {[%emt 0:01:40]} 55. Rf8+ {[%emt 0:00:13]} Kg7 {[%emt 0:00:27]} 56. Rf5 {[%emt 0:00:53]} Kg6 {[%emt 0:00:36]} 57. Rd5 {[%emt 0:00:01]} Be3 {[%emt 0:00:32]} 58. Re5 {[%emt 0:00:12]} Bf2 {[%emt 0:00:32]} 59. g3 {[%emt 0:00:59]} Kf6 {[%emt 0:00:05]} 60. f4 1/2-1/2

[Event "14th Poti Open-A 2019"]
[Site "Poti"]
[Date "2019.07.18"]
[Round "7.13"]
[White "Muradli, Mahammad"]
[Black "Tsotsonava, Elene"]
[Result "1-0"]
[ECO "D21"]
[WhiteElo "2454"]
[BlackElo "1878"]
[Annotator "ChessBase"]
[PlyCount "37"]
[EventDate "2019.07.13"]
[EventType "swiss"]
[EventCountry "GEO"]
[SourceTitle "playchess.com"]
[Source "ChessBase"]
[SourceQuality "1"]
[TimeControl "40/5400+30:1800+30"]

1. d4 {[%emt 0:01:45]} d5 {[%emt 0:00:00]} 2. c4 {[%emt 0:00:09]} dxc4 {[%emt 0:00:00]} 3. Nf3 {[%emt 0:00:11]} c5 {[%emt 0:00:00]} 4. d5 {[%emt 0:02:22]} Nf6 {[%emt 0:00:28]} 5. Nc3 {[%emt 0:00:15]} e6 {[%emt 0:00:16]} 6. e4 {[%emt 0:03:29]} exd5 {[%emt 0:00:44]} 7. e5 {[%emt 0:10:23]} Ne4 {[%emt 0:00:51]} 8. Nxd5 {[%emt 0:06:39]} b5 {[%emt 0:01:15]} 9. b3 {[%emt 0:03:39]} Nc6 {[%emt 0:10:59]} 10. bxc4 {[%emt 0:01:56]} Be6 {[%emt 0:01:07]} 11. Qc2 {[%emt 0:23:03]} Qa5+ {[%emt 0:15:51]} 12. Nd2 {[%emt 0:03:01]} Bf5 {[%emt 0:12:29]} 13. Bd3 {[%emt 0:02:51]} Nxd2 {[%emt 0:10:37]} 14. Bxd2 {[%emt 0:00:34]} Bxd3 {[%emt 0:00:08]} 15. Qxd3 {[%emt 0:00:05]} bxc4 {[%emt 0:03:59]} 16. Qe4 {[%emt 0:00:14]} c3 {[%emt 0:03:20]} 17. Bxc3 {[%emt 0:00:22]} Qd8 {[%emt 0:00:17]} 18. Nf6+ {[%emt 0:00:08]} gxf6 {[%emt 0:00:09]} 19. Qxc6+ {[%emt 0:00:06]} 1-0

[Event "14th Poti Open-A 2019"]
[Site "Poti"]
[Date "2019.07.18"]
[Round "7.14"]
[White "Janiashvili, Mariami"]
[Black "Yeritsyan, Hayk"]
[Result "0-1"]
[ECO "A58"]
[WhiteElo "1993"]
[BlackElo "2210"]
[Annotator "NA"]
[PlyCount "54"]
[EventDate "2019.07.13"]
[EventType "swiss"]
[EventCountry "GEO"]
[SourceTitle "playchess.com"]
[Source "ChessBase"]
[SourceQuality "1"]
[TimeControl "40/5400+30:1800+30"]

1. d4 {[%emt 0:00:00]} Nf6 {[%emt 0:00:01]} 2. c4 {[%emt 0:00:00]} c5 {[%emt 0:00:09]} 3. d5 {[%emt 0:00:00]} b5 {[%emt 0:00:10]} 4. cxb5 {[%emt 0:00:00]} a6 {[%emt 0:00:12]} 5. bxa6 {[%emt 0:00:02]} g6 {[%emt 0:00:11]} 6. g3 {[%emt 0:00:22]} Bg7 {[%emt 0:00:08]} 7. Bg2 {[%emt 0:00:05]} d6 {[%emt 0:00:12]} 8. Nc3 {[%emt 0:00:14]} O-O {[%emt 0:00:13]} 9. Nf3 {[%emt 0:00:16]} Nxa6 {[%emt 0:01:08]} 10. O-O {[%emt 0:01:08]} Bf5 {[%emt 0:00:05]} 11. Nh4 {[%emt 0:02:48]} Bd7 {[%emt 0:00:10]} 12. e4 {[%emt 0:01:08]} Qb6 {[%emt 0:03:14]} 13. h3 {[%emt 0:05:00]} Ne8 {[%emt 0:09:48]} 14. Re1 {[%emt 0:15:28]} Nec7 {[%emt 0:00:57]} 15. Nf3 {[%emt 0:17:15]} Nb5 {[%emt 0:05:07]} 16. Nxb5 {[%emt 0:02:06]} Bxb5 {[%emt 0:00:14]} 17. Bg5 {[%emt 0:18:23]} Ra7 {[%emt 0:09:19]} 18. a4 {[%emt 0:04:23]} Bc4 {[%emt 0:03:21]} 19. Nd2 {[%emt 0:04:24]} Bd3 {[%emt 0:00:10]} 20. Nb3 {[%emt 0:17:25]} Nb4 {[%emt 0:07:49]} 21. e5 {[%emt 0:07:09]} Bc2 {[%emt 0:10:01]} 22. a5 {[%emt 0:00:16]} Qb8 {[%emt 0:03:37]} 23. Qf3 {[%emt 0:00:17]} Nd3 {[%emt 0:00:42]} 24. Nd2 {[%emt 0:00:35]} Nxe1 25. Rxe1 {[%emt 0:00:02]} Bxe5 {[%emt 0:01:22]} 26. Nc4 {[%emt 0:00:30]} Qb4 {[%emt 0:00:22]} 27. Qe2 {[%emt 0:02:36]} Bd3 {[%emt 0:00:44]} 0-1